[Event "Live Chess"]
[Site "Chess.com"]
[Date "2024.06.01"]
[Round "-"]
[White "dl_chess"]
[Black "PureDashingOctopus"]
[Result "0-1"]
[WhiteElo "1165"]
[BlackElo "2207"]
[TimeControl "300"]
[EndTime "10:02:26 PDT"]
[Termination "PureDashingOctopus won by resignation"]

1. e4 {[%clk 0:04:55.9]} 1... c5 {[%clk 0:04:59.2]} 2. Nf3 {[%clk 0:04:54.2]}
2... d6 {[%clk 0:04:57.7]} 3. d4 {[%clk 0:04:53.2]} 3... cxd4 {[%clk 0:04:56.7]}
4. Nxd4 {[%clk 0:04:52.2]} 4... Nf6 {[%clk 0:04:55]} 5. Nc3 {[%clk 0:04:50.8]}
5... a6 {[%clk 0:04:52.2]} 6. Be3 {[%clk 0:04:44.8]} 6... e5 {[%clk 0:04:48.6]}
7. Nb3 {[%clk 0:04:38.4]} 7... Be7 {[%clk 0:04:46]} 8. Bc4 {[%clk 0:04:22.9]}
8... O-O {[%clk 0:04:34.2]} 9. Qd2 {[%clk 0:04:21]} 9... Nbd7 {[%clk 0:04:30.1]}
10. O-O-O {[%clk 0:04:19.4]} 10... b5 {[%clk 0:04:20.7]} 11. Be2 {[%clk
0:04:16.9]} 11... Bb7 {[%clk 0:04:19.3]} 12. f3 {[%clk 0:04:15.5]} 12... Nb6
{[%clk 0:04:16.6]} 13. h4 {[%clk 0:04:09.6]} 13... b4 {[%clk 0:04:08.1]} 14. Nd5
{[%clk 0:04:03]} 14... Nbxd5 {[%clk 0:04:05.1]} 15. exd5 {[%clk 0:04:02.1]}
15... Nxd5 {[%clk 0:04:04.2]} 16. g4 {[%clk 0:03:52.9]} 16... Nxe3 {[%clk
0:03:58.7]} 17. Qxe3 {[%clk 0:03:51.6]} 17... a5 {[%clk 0:03:58.1]} 18. h5
{[%clk 0:03:32.3]} 18... Bg5 {[%clk 0:03:53]} 19. Qxg5 {[%clk 0:03:18.9]} 19...
Qxg5+ {[%clk 0:03:52.9]} 20. Kb1 {[%clk 0:03:16.9]} 20... a4 {[%clk 0:03:52.1]}
21. Nd2 {[%clk 0:03:14.4]} 21... d5 {[%clk 0:03:51.1]} 22. h6 {[%clk 0:03:02.2]}
22... g6 {[%clk 0:03:47.6]} 23. Bd3 {[%clk 0:02:48.7]} 23... a3 {[%clk
0:03:43.9]} 24. b3 {[%clk 0:02:47]} 24... e4 {[%clk 0:03:41.4]} 25. fxe4 {[%clk
0:02:44.1]} 25... Qe5 {[%clk 0:03:38.5]} 0-1

[Event "Live Chess"]
[Site "Chess.com"]
[Date "2024.06.01"]
[Round "-"]
[White "DoggyDalmatian"]
[Black "gmnorfolk"]
[Result "0-1"]
[WhiteElo "1564"]
[BlackElo "2090"]
[TimeControl "300"]
[EndTime "10:02:31 PDT"]
[Termination "gmnorfolk won by checkmate"]

1. e4 {[%clk 0:04:54.8]} 1... c5 {[%clk 0:04:58.6]} 2. Nf3 {[%clk 0:04:53.3]}
2... d6 {[%clk 0:04:58.3]} 3. d4 {[%clk 0:04:52.4]} 3... cxd4 {[%clk 0:04:57.8]}
4. Nxd4 {[%clk 0:04:52.3]} 4... Nf6 {[%clk 0:04:56.7]} 5. Nc3 {[%clk 0:04:51.7]}
5... a6 {[%clk 0:04:56]} 6. Be3 {[%clk 0:04:50.3]} 6... e5 {[%clk 0:04:55]} 7.
Nb3 {[%clk 0:04:49.2]} 7... Be7 {[%clk 0:04:51.9]} 8. Qd2 {[%clk 0:04:40.6]}
8... Be6 {[%clk 0:04:49.1]} 9. O-O-O {[%clk 0:04:34.5]} 9... Nbd7 {[%clk
0:04:47.8]} 10. Kb1 {[%clk 0:04:29.5]} 10... Rc8 {[%clk 0:04:44.9]} 11. Be2
{[%clk 0:04:27.9]} 11... b5 {[%clk 0:04:43.1]} 12. Nd5 {[%clk 0:04:25.9]} 12...
Nxe4 {[%clk 0:04:36.9]} 13. Qd3 {[%clk 0:04:15.3]} 13... Bxd5 {[%clk 0:04:14.8]}
14. Qxd5 {[%clk 0:04:04.1]} 14... Nef6 {[%clk 0:04:13.8]} 15. Qd3 {[%clk
0:04:01.9]} 15... Qc7 {[%clk 0:04:08.6]} 16. Bf3 {[%clk 0:03:58.2]} 16... O-O
{[%clk 0:04:03.1]} 17. h3 {[%clk 0:03:54]} 17... Nc5 {[%clk 0:04:02.1]} 18. Nxc5
{[%clk 0:03:51.9]} 18... dxc5 {[%clk 0:04:02]} 19. c3 {[%clk 0:03:46.3]} 19...
c4 {[%clk 0:03:54.2]} 20. Qc2 {[%clk 0:03:45.3]} 20... a5 {[%clk 0:03:53.6]} 21.
g4 {[%clk 0:03:43.3]} 21... b4 {[%clk 0:03:47.2]} 22. cxb4 {[%clk 0:03:42.1]}
22... axb4 {[%clk 0:03:45.7]} 23. g5 {[%clk 0:03:41.7]} 23... Nd7 {[%clk
0:03:42]} 24. Bg4 {[%clk 0:03:33.2]} 24... Rfd8 {[%clk 0:03:37.2]} 25. Qe4
{[%clk 0:03:22]} 25... c3 {[%clk 0:03:32.3]} 26. bxc3 {[%clk 0:03:19.2]} 26...
bxc3 {[%clk 0:03:30.6]} 27. Kc2 {[%clk 0:03:18]} 27... Ra8 {[%clk 0:03:19.5]}
28. Ra1 {[%clk 0:03:06.2]} 28... Nc5 {[%clk 0:03:12.1]} 29. Bxc5 {[%clk
0:03:03.9]} 29... Qxc5 {[%clk 0:03:09.6]} 30. Rhb1 {[%clk 0:02:59.7]} 30... Rd2+
{[%clk 0:03:06.6]} 31. Kb3 {[%clk 0:02:57.4]} 31... Ra3# {[%clk 0:03:04.6]} 0-1

[Event "Live Chess"]
[Site "Chess.com"]
[Date "2024.06.01"]
[Round "-"]
[White "seasidecastle27"]
[Black "KeithArkell"]
[Result "0-1"]
[WhiteElo "1946"]
[BlackElo "2516"]
[TimeControl "300"]
[EndTime "10:02:52 PDT"]
[Termination "KeithArkell won on time"]

1. d4 {[%clk 0:04:56.2]} 1... e6 {[%clk 0:04:58.8]} 2. Nf3 {[%clk 0:04:54.8]}
2... Nf6 {[%clk 0:04:57.8]} 3. Bg5 {[%clk 0:04:51.4]} 3... c5 {[%clk 0:04:57.2]}
4. e3 {[%clk 0:04:49.6]} 4... cxd4 {[%clk 0:04:56.5]} 5. exd4 {[%clk 0:04:48.3]}
5... Be7 {[%clk 0:04:56.2]} 6. Nbd2 {[%clk 0:04:46.7]} 6... b6 {[%clk
0:04:55.8]} 7. Bd3 {[%clk 0:04:45.3]} 7... O-O {[%clk 0:04:55]} 8. Qe2 {[%clk
0:04:43.6]} 8... a5 {[%clk 0:04:53]} 9. O-O {[%clk 0:04:41.5]} 9... Ba6 {[%clk
0:04:52.2]} 10. c3 {[%clk 0:04:38.9]} 10... Bxd3 {[%clk 0:04:50.7]} 11. Qxd3
{[%clk 0:04:37.6]} 11... d6 {[%clk 0:04:49.6]} 12. Rad1 {[%clk 0:04:35.6]} 12...
Nbd7 {[%clk 0:04:48.7]} 13. Rfe1 {[%clk 0:04:34.2]} 13... Qc7 {[%clk 0:04:46.5]}
14. Ne4 {[%clk 0:04:31]} 14... Rfe8 {[%clk 0:04:45.8]} 15. Bh4 {[%clk
0:04:26.7]} 15... Nxe4 {[%clk 0:04:44.2]} 16. Qxe4 {[%clk 0:04:24.9]} 16... Bxh4
{[%clk 0:04:42.4]} 17. Qxh4 {[%clk 0:04:23.3]} 17... h6 {[%clk 0:04:40.3]} 18.
Qf4 {[%clk 0:04:18]} 18... b5 {[%clk 0:04:34.2]} 19. a3 {[%clk 0:04:15.9]} 19...
b4 {[%clk 0:04:32.1]} 20. axb4 {[%clk 0:04:14.3]} 20... axb4 {[%clk 0:04:31.6]}
21. Rc1 {[%clk 0:04:07.4]} 21... bxc3 {[%clk 0:04:29.5]} 22. bxc3 {[%clk
0:04:06]} 22... Nb6 {[%clk 0:04:25.8]} 23. Nd2 {[%clk 0:04:00.8]} 23... Rec8
{[%clk 0:04:17.2]} 24. c4 {[%clk 0:03:56.5]} 24... Ra4 {[%clk 0:04:14.2]} 25. c5
{[%clk 0:03:50.7]} 25... dxc5 {[%clk 0:04:13.1]} 26. Qxc7 {[%clk 0:03:48.6]}
26... Rxc7 {[%clk 0:04:12]} 27. Rxc5 {[%clk 0:03:39.8]} 27... Rd7 {[%clk
0:04:07.2]} 28. Nf3 {[%clk 0:03:33.2]} 28... g5 {[%clk 0:03:58.4]} 29. h3 {[%clk
0:03:30.5]} 29... Nd5 {[%clk 0:03:00.7]} 30. Rc8+ {[%clk 0:03:22.7]} 30... Kg7
{[%clk 0:02:59.6]} 31. Ne5 {[%clk 0:03:18.4]} 31... Rb7 {[%clk 0:02:57.8]} 32.
Nf3 {[%clk 0:03:09]} 32... Nf4 {[%clk 0:02:52.8]} 33. Rc3 {[%clk 0:02:59.6]}
33... Ra2 {[%clk 0:02:50.3]} 34. Rce3 {[%clk 0:02:24.2]} 34... Rbb2 {[%clk
0:02:47.7]} 35. Rf1 {[%clk 0:02:22.1]} 35... Ra4 {[%clk 0:02:41.3]} 36. Re4
{[%clk 0:02:10.5]} 36... Re2 {[%clk 0:02:36.4]} 37. Re1 {[%clk 0:01:54.5]} 37...
Rb2 {[%clk 0:02:17.3]} 38. Rf1 {[%clk 0:01:51.9]} 38... Raa2 {[%clk 0:02:16.3]}
39. h4 {[%clk 0:01:45.1]} 39... Kf6 {[%clk 0:02:14.3]} 40. hxg5+ {[%clk
0:01:41.6]} 40... hxg5 {[%clk 0:02:14.2]} 41. Re5 {[%clk 0:01:35.6]} 41... g4
{[%clk 0:02:09.3]} 42. Ng5 {[%clk 0:01:28.3]} 42... Ne2+ {[%clk 0:02:06.7]} 43.
Kh2 {[%clk 0:01:19.4]} 43... Nxd4 {[%clk 0:02:05.5]} 44. Re4 {[%clk 0:01:06.5]}
44... Kxg5 {[%clk 0:02:01.5]} 45. Rxd4 {[%clk 0:01:05.1]} 45... Rxf2 {[%clk
0:02:00.6]} 46. Rxf2 {[%clk 0:01:02.1]} 46... Rxf2 {[%clk 0:01:59.4]} 47. Kg3
{[%clk 0:01:00.4]} 47... Rf5 {[%clk 0:01:54.8]} 48. Rxg4+ {[%clk 0:00:57.7]}
48... Kf6 {[%clk 0:01:54.1]} 49. Ra4 {[%clk 0:00:53.7]} 49... Kg6 {[%clk
0:01:50.6]} 50. Kh2 {[%clk 0:00:47.6]} 50... Kg5 {[%clk 0:01:46.2]} 51. Kg3
{[%clk 0:00:39.4]} 51... f6 {[%clk 0:01:43.9]} 52. Ra8 {[%clk 0:00:34.5]} 52...
Rc5 {[%clk 0:01:41.6]} 53. Ra4 {[%clk 0:00:27.5]} 53... f5 {[%clk 0:01:37.6]}
54. Kf3 {[%clk 0:00:23]} 54... Rc3+ {[%clk 0:01:35.9]} 55. Kf2 {[%clk
0:00:20.7]} 55... e5 {[%clk 0:01:35.4]} 56. Rb4 {[%clk 0:00:18.1]} 56... Rc2+
{[%clk 0:01:26.2]} 57. Kf1 {[%clk 0:00:15.7]} 57... e4 {[%clk 0:01:25.1]} 58.
Rb3 {[%clk 0:00:11.8]} 58... Kf4 {[%clk 0:01:22.1]} 59. g3+ {[%clk 0:00:09.6]}
59... Kg4 {[%clk 0:01:21.4]} 60. Kg1 {[%clk 0:00:07.1]} 60... Rd2 {[%clk
0:01:20.7]} 61. Kf1 {[%clk 0:00:05.3]} 61... Rd3 {[%clk 0:01:20]} 62. Rxd3
{[%clk 0:00:02.9]} 62... exd3 {[%clk 0:01:19.3]} 63. Ke1 {[%clk 0:00:02.2]}
63... Kxg3 {[%clk 0:01:18.8]} 64. Kd2 {[%clk 0:00:01.5]} 64... f4 {[%clk
0:01:18]} 65. Kxd3 {[%clk 0:00:00.9]} 65... f3 {[%clk 0:01:17.7]} 0-1

[Event "Live Chess"]
[Site "Chess.com"]
[Date "2024.06.01"]
[Round "-"]
[White "jimwad"]
[Black "peteopeteo"]
[Result "1-0"]
[WhiteElo "1238"]
[BlackElo "1609"]
[TimeControl "300"]
[EndTime "10:03:05 PDT"]
[Termination "jimwad won by checkmate"]

1. d4 {[%clk 0:04:58]} 1... d5 {[%clk 0:04:58.8]} 2. c4 {[%clk 0:04:57.1]} 2...
c6 {[%clk 0:04:58]} 3. Nc3 {[%clk 0:04:55.8]} 3... Nf6 {[%clk 0:04:57.5]} 4. Bf4
{[%clk 0:04:54.8]} 4... Bf5 {[%clk 0:04:56]} 5. e3 {[%clk 0:04:53.2]} 5... e6
{[%clk 0:04:54.5]} 6. Nf3 {[%clk 0:04:51.9]} 6... Bd6 {[%clk 0:04:53.9]} 7. Bg5
{[%clk 0:04:48.8]} 7... Nbd7 {[%clk 0:04:52.8]} 8. Bd3 {[%clk 0:04:46.4]} 8...
Bg6 {[%clk 0:04:48.2]} 9. Bxg6 {[%clk 0:04:43.8]} 9... hxg6 {[%clk 0:04:48.1]}
10. h3 {[%clk 0:04:42.4]} 10... Be7 {[%clk 0:04:42.7]} 11. O-O {[%clk
0:04:40.6]} 11... c5 {[%clk 0:04:38.1]} 12. dxc5 {[%clk 0:04:34.7]} 12... Nxc5
{[%clk 0:04:38]} 13. cxd5 {[%clk 0:04:32.1]} 13... exd5 {[%clk 0:04:31.4]} 14.
Bxf6 {[%clk 0:04:28.2]} 14... Bxf6 {[%clk 0:04:27.8]} 15. Rc1 {[%clk 0:04:04.3]}
15... Bxc3 {[%clk 0:03:59.5]} 16. Rxc3 {[%clk 0:04:00]} 16... Ne4 {[%clk
0:03:56.2]} 17. Rd3 {[%clk 0:03:54.7]} 17... Nf6 {[%clk 0:03:28.2]} 18. e4
{[%clk 0:03:44.2]} 18... Nxe4 {[%clk 0:03:21.4]} 19. Rxd5 {[%clk 0:03:42.8]}
19... Qb6 {[%clk 0:03:17.2]} 20. Re5+ {[%clk 0:03:38.4]} 20... Kf8 {[%clk
0:03:10.1]} 21. Rxe4 {[%clk 0:03:36]} 21... Rd8 {[%clk 0:03:09.3]} 22. Qc1
{[%clk 0:03:21.5]} 22... Qf6 {[%clk 0:02:53.2]} 23. Rc4 {[%clk 0:03:08.4]} 23...
Kg8 {[%clk 0:02:40.9]} 24. Rc8 {[%clk 0:03:06.6]} 24... Kh7 {[%clk 0:02:39.1]}
25. Rxd8 {[%clk 0:03:04.6]} 25... Rxd8 {[%clk 0:02:39]} 26. Rd1 {[%clk
0:02:51.1]} 26... Re8 {[%clk 0:02:32.8]} 27. Ng5+ {[%clk 0:02:46]} 27... Kg8
{[%clk 0:02:26.9]} 28. Nf3 {[%clk 0:02:33.5]} 28... Re2 {[%clk 0:02:07.5]} 29.
Qc8+ {[%clk 0:02:23.9]} 29... Kh7 {[%clk 0:02:06.5]} 30. Qxb7 {[%clk 0:02:13.8]}
30... Re7 {[%clk 0:01:53.6]} 31. Qb4 {[%clk 0:02:04]} 31... Re6 {[%clk
0:01:47.4]} 32. Qh4+ {[%clk 0:01:59.6]} 32... Qxh4 {[%clk 0:01:43.8]} 33. Nxh4
{[%clk 0:01:58.2]} 33... Rb6 {[%clk 0:01:43.1]} 34. b3 {[%clk 0:01:56.5]} 34...
Ra6 {[%clk 0:01:42.1]} 35. Rd2 {[%clk 0:01:53.7]} 35... Rc6 {[%clk 0:01:39.2]}
36. Kh2 {[%clk 0:01:51.6]} 36... Rc1 {[%clk 0:01:37.8]} 37. Nf3 {[%clk
0:01:49.2]} 37... Rc6 {[%clk 0:01:33.5]} 38. Ng5+ {[%clk 0:01:44.8]} 38... Kh6
{[%clk 0:01:31.8]} 39. Nxf7+ {[%clk 0:01:42.6]} 39... Kh7 {[%clk 0:01:28.1]} 40.
Ng5+ {[%clk 0:01:41.2]} 40... Kh6 {[%clk 0:01:27.4]} 41. Nf3 {[%clk 0:01:34.7]}
41... a5 {[%clk 0:01:25]} 42. Rd5 {[%clk 0:01:29.7]} 42... a4 {[%clk 0:01:22.6]}
43. bxa4 {[%clk 0:01:21.8]} 43... Ra6 {[%clk 0:01:21.8]} 44. Rd4 {[%clk
0:01:20.7]} 44... g5 {[%clk 0:01:19.1]} 45. Ne5 {[%clk 0:01:17.2]} 45... Rf6
{[%clk 0:01:14.2]} 46. f3 {[%clk 0:01:15.5]} 46... Rf5 {[%clk 0:01:12.7]} 47.
Ng4+ {[%clk 0:01:13.9]} 47... Kh5 {[%clk 0:01:10.1]} 48. Rd3 {[%clk 0:01:05.7]}
48... Rf4 {[%clk 0:01:06.9]} 49. Ra3 {[%clk 0:01:03.4]} 49... g6 {[%clk
0:00:59.7]} 50. a5 {[%clk 0:00:46.8]} 50... Rf8 {[%clk 0:00:58.5]} 51. a6 {[%clk
0:00:45.3]} 51... Ra8 {[%clk 0:00:57.6]} 52. a7 {[%clk 0:00:40.9]} 52... Kh4
{[%clk 0:00:56.5]} 53. g3+ {[%clk 0:00:37.1]} 53... Kh5 {[%clk 0:00:55.5]} 54.
Nf6+ {[%clk 0:00:35.1]} 54... Kh6 {[%clk 0:00:54.9]} 55. f4 {[%clk 0:00:30.5]}
55... gxf4 {[%clk 0:00:53.5]} 56. gxf4 {[%clk 0:00:29.5]} 56... Kg7 {[%clk
0:00:53.2]} 57. Nd7 {[%clk 0:00:26.4]} 57... Kf7 {[%clk 0:00:44.6]} 58. Nb6
{[%clk 0:00:25.1]} 58... Rh8 {[%clk 0:00:40.8]} 59. a8=Q {[%clk 0:00:23.3]}
59... Rxa8 {[%clk 0:00:40.7]} 60. Rxa8 {[%clk 0:00:22.4]} 60... Kf6 {[%clk
0:00:40.4]} 61. a4 {[%clk 0:00:21.2]} 61... Kf5 {[%clk 0:00:39.7]} 62. Kg3
{[%clk 0:00:20.5]} 62... g5 {[%clk 0:00:39.2]} 63. Nd5 {[%clk 0:00:19.6]} 63...
gxf4+ {[%clk 0:00:39.1]} 64. Kf3 {[%clk 0:00:18.2]} 64... Ke5 {[%clk 0:00:38.1]}
65. Rd8 {[%clk 0:00:14.5]} 65... Ke6 {[%clk 0:00:36.2]} 66. a5 {[%clk
0:00:13.5]} 66... Kf7 {[%clk 0:00:34.4]} 67. a6 {[%clk 0:00:12.1]} 67... Kg6
{[%clk 0:00:33.6]} 68. a7 {[%clk 0:00:11.1]} 68... Kf7 {[%clk 0:00:33.5]} 69.
a8=Q {[%clk 0:00:09.3]} 69... Ke6 {[%clk 0:00:33.4]} 70. Qc6+ {[%clk 0:00:05.9]}
70... Kf7 {[%clk 0:00:33.1]} 71. Rd7+ {[%clk 0:00:04.9]} 71... Ke8 {[%clk
0:00:32.5]} 72. Qc8# {[%clk 0:00:04.3]} 1-0

[Event "Live Chess"]
[Site "Chess.com"]
[Date "2024.06.01"]
[Round "-"]
[White "Delacorta"]
[Black "Ninifu"]
[Result "1-0"]
[WhiteElo "1449"]
[BlackElo "2053"]
[TimeControl "300"]
[EndTime "10:03:05 PDT"]
[Termination "Delacorta won on time"]

1. d4 {[%clk 0:04:57.2]} 1... Nf6 {[%clk 0:04:57.8]} 2. Nf3 {[%clk 0:04:56.1]}
2... g6 {[%clk 0:04:56.4]} 3. e3 {[%clk 0:04:55.2]} 3... Bg7 {[%clk 0:04:55.8]}
4. Be2 {[%clk 0:04:53.4]} 4... O-O {[%clk 0:04:55.2]} 5. c4 {[%clk 0:04:52.5]}
5... d6 {[%clk 0:04:54.5]} 6. Nc3 {[%clk 0:04:51.3]} 6... Nbd7 {[%clk
0:04:53.8]} 7. h4 {[%clk 0:04:50.3]} 7... e5 {[%clk 0:04:53.1]} 8. dxe5 {[%clk
0:04:43.8]} 8... dxe5 {[%clk 0:04:51.3]} 9. Ng5 {[%clk 0:04:33.2]} 9... h6
{[%clk 0:04:44.2]} 10. Nge4 {[%clk 0:04:24.2]} 10... Qe7 {[%clk 0:04:43.2]} 11.
Nxf6+ {[%clk 0:04:22.5]} 11... Nxf6 {[%clk 0:04:40.1]} 12. h5 {[%clk 0:04:16.4]}
12... g5 {[%clk 0:04:35.2]} 13. Qc2 {[%clk 0:03:58.8]} 13... e4 {[%clk
0:04:30.2]} 14. Bd2 {[%clk 0:03:49.2]} 14... Bf5 {[%clk 0:04:20.6]} 15. O-O-O
{[%clk 0:03:42.7]} 15... Rfd8 {[%clk 0:04:15.9]} 16. Qb3 {[%clk 0:03:35.5]}
16... b6 {[%clk 0:04:04.7]} 17. Nb5 {[%clk 0:03:27.5]} 17... a5 {[%clk
0:03:34.9]} 18. Nd4 {[%clk 0:03:22.9]} 18... Rxd4 {[%clk 0:02:52.6]} 19. exd4
{[%clk 0:03:19]} 19... Ng4 {[%clk 0:02:26.6]} 20. Bxg4 {[%clk 0:02:49.8]} 20...
Bxg4 {[%clk 0:02:24.7]} 21. Rde1 {[%clk 0:02:47.5]} 21... Bxd4 {[%clk
0:02:10.7]} 22. f3 {[%clk 0:02:36.7]} 22... Bf5 {[%clk 0:02:00.8]} 23. fxe4
{[%clk 0:02:19.7]} 23... Bxe4 {[%clk 0:01:59.1]} 24. Re2 {[%clk 0:02:07.9]}
24... a4 {[%clk 0:01:19.8]} 25. Qg3 {[%clk 0:01:37]} 25... a3 {[%clk 0:01:05]}
26. b3 {[%clk 0:01:34.2]} 26... Bb2+ {[%clk 0:00:44]} 27. Kd1 {[%clk 0:01:29.4]}
27... f5 {[%clk 0:00:43.2]} 28. Bc3 {[%clk 0:01:20]} 28... Rd8+ {[%clk 0:00:40]}
29. Ke1 {[%clk 0:01:18]} 29... Rd3 {[%clk 0:00:35.5]} 30. Qxd3 {[%clk
0:01:13.1]} 30... Bxd3 {[%clk 0:00:28.4]} 31. Rxe7 {[%clk 0:01:11.8]} 31...
Bxc3+ {[%clk 0:00:27.9]} 32. Kf2 {[%clk 0:01:08.7]} 32... Bd4+ {[%clk
0:00:26.3]} 33. Kg3 {[%clk 0:00:56.3]} 33... Kf8 {[%clk 0:00:25.3]} 34. Rhe1
{[%clk 0:00:53.5]} 34... f4+ {[%clk 0:00:24.6]} 35. Kh2 {[%clk 0:00:49.8]} 35...
g4 {[%clk 0:00:21.4]} 36. Rd7 {[%clk 0:00:44]} 36... g3+ {[%clk 0:00:14.8]} 37.
Kh1 {[%clk 0:00:42.6]} 37... c5 {[%clk 0:00:11.4]} 38. Ree7 {[%clk 0:00:37.7]}
38... Bf5 {[%clk 0:00:07.9]} 39. Rf7+ {[%clk 0:00:36.2]} 39... Ke8 {[%clk
0:00:05.4]} 40. Rde7+ {[%clk 0:00:33.3]} 40... Kd8 {[%clk 0:00:04.2]} 41. Rxf5
{[%clk 0:00:31.6]} 41... Kxe7 {[%clk 0:00:01.5]} 42. Rxf4 {[%clk 0:00:30.7]}
42... Be5 {[%clk 0:00:00.2]} 43. Re4 {[%clk 0:00:29.1]} 1-0

[Event "Live Chess"]
[Site "Chess.com"]
[Date "2024.06.01"]
[Round "-"]
[White "Berdgross"]
[Black "Frankie_Badacsonyi"]
[Result "0-1"]
[WhiteElo "600"]
[BlackElo "2448"]
[TimeControl "300"]
[EndTime "10:03:08 PDT"]
[Termination "Frankie_Badacsonyi won by resignation"]

1. e4 {[%clk 0:04:55.6]} 1... e5 {[%clk 0:04:58.4]} 2. d3 {[%clk 0:04:55.5]}
2... Nc6 {[%clk 0:04:56.2]} 3. Nf3 {[%clk 0:04:55.4]} 3... Bc5 {[%clk
0:04:54.9]} 4. Nc3 {[%clk 0:04:53.5]} 4... d6 {[%clk 0:04:54.1]} 5. Nd5 {[%clk
0:04:50.7]} 5... h6 {[%clk 0:04:52]} 6. a3 {[%clk 0:04:45.8]} 6... Nf6 {[%clk
0:04:50.7]} 7. Nxf6+ {[%clk 0:04:40.5]} 7... Qxf6 {[%clk 0:04:50.6]} 8. b4
{[%clk 0:04:35.4]} 8... Bb6 {[%clk 0:04:49.3]} 9. Be3 {[%clk 0:04:23.4]} 9...
O-O {[%clk 0:04:47.5]} 10. Bxb6 {[%clk 0:04:21.7]} 10... axb6 {[%clk 0:04:47.4]}
11. h3 {[%clk 0:04:12.9]} 11... Be6 {[%clk 0:04:40.6]} 12. Be2 {[%clk
0:04:12.8]} 12... Qe7 {[%clk 0:04:39.5]} 13. O-O {[%clk 0:04:11]} 13... f5
{[%clk 0:04:38.7]} 14. exf5 {[%clk 0:04:09.2]} 14... Bxf5 {[%clk 0:04:38.6]} 15.
Nh4 {[%clk 0:03:59.7]} 15... Qxh4 {[%clk 0:04:36.7]} 16. g3 {[%clk 0:03:51]}
16... Qxh3 {[%clk 0:04:32.4]} 17. Bf3 {[%clk 0:03:44.6]} 17... Nd4 {[%clk
0:04:26.5]} 18. Bxb7 {[%clk 0:03:39.1]} 18... Bg4 {[%clk 0:04:21.5]} 19. Qd2
{[%clk 0:03:32.2]} 19... Nf3+ {[%clk 0:04:17.6]} 0-1

[Event "Live Chess"]
[Site "Chess.com"]
[Date "2024.06.01"]
[Round "-"]
[White "blunderabit"]
[Black "KGreenGator"]
[Result "1/2-1/2"]
[WhiteElo "1817"]
[BlackElo "1776"]
[TimeControl "300"]
[EndTime "10:03:13 PDT"]
[Termination "Game drawn - timeout vs insufficient material"]

1. e4 {[%clk 0:04:56.2]} 1... c5 {[%clk 0:04:57.7]} 2. Nf3 {[%clk 0:04:52.5]}
2... g6 {[%clk 0:04:54.5]} 3. d4 {[%clk 0:04:48.8]} 3... cxd4 {[%clk 0:04:52.4]}
4. Nxd4 {[%clk 0:04:48.2]} 4... Bg7 {[%clk 0:04:49.9]} 5. Nc3 {[%clk 0:04:47.3]}
5... a6 {[%clk 0:04:48.2]} 6. Be3 {[%clk 0:04:44.5]} 6... e6 {[%clk 0:04:47.2]}
7. a4 {[%clk 0:04:38.4]} 7... Ne7 {[%clk 0:04:46.5]} 8. Bc4 {[%clk 0:04:30.8]}
8... Nbc6 {[%clk 0:04:45]} 9. h3 {[%clk 0:04:23.2]} 9... O-O {[%clk 0:04:40.7]}
10. O-O {[%clk 0:04:20.1]} 10... f5 {[%clk 0:04:30.4]} 11. f3 {[%clk 0:04:03.3]}
11... f4 {[%clk 0:04:27.7]} 12. Bf2 {[%clk 0:04:01.6]} 12... Kh8 {[%clk
0:04:21.8]} 13. Qd2 {[%clk 0:03:53.2]} 13... e5 {[%clk 0:04:18]} 14. Nxc6 {[%clk
0:03:46.5]} 14... Nxc6 {[%clk 0:04:11.7]} 15. Nd5 {[%clk 0:03:43.3]} 15... d6
{[%clk 0:04:08.8]} 16. Bb6 {[%clk 0:03:36.6]} 16... Qg5 {[%clk 0:04:06.2]} 17.
Kh1 {[%clk 0:03:32.7]} 17... Ne7 {[%clk 0:04:00.1]} 18. Nxe7 {[%clk 0:03:25.8]}
18... Qxe7 {[%clk 0:03:57.4]} 19. Rfd1 {[%clk 0:03:23.9]} 19... Rf6 {[%clk
0:03:53.2]} 20. Bb3 {[%clk 0:03:03.4]} 20... Bf8 {[%clk 0:03:46.3]} 21. a5
{[%clk 0:02:51.3]} 21... Bd7 {[%clk 0:03:40.7]} 22. Bd5 {[%clk 0:02:37]} 22...
Bc6 {[%clk 0:03:36.4]} 23. Bxc6 {[%clk 0:02:35.1]} 23... bxc6 {[%clk 0:03:35.1]}
24. Qc3 {[%clk 0:02:28.1]} 24... c5 {[%clk 0:03:27.6]} 25. Rd5 {[%clk
0:02:26.1]} 25... Rc8 {[%clk 0:03:24.2]} 26. b4 {[%clk 0:02:13.4]} 26... c4
{[%clk 0:03:21.4]} 27. b5 {[%clk 0:02:08.5]} 27... axb5 {[%clk 0:03:19]} 28.
Rxb5 {[%clk 0:02:08]} 28... Qd7 {[%clk 0:03:16.7]} 29. Rbb1 {[%clk 0:01:58.9]}
29... d5 {[%clk 0:03:13.8]} 30. exd5 {[%clk 0:01:55.4]} 30... Qxd5 {[%clk
0:03:11.2]} 31. Re1 {[%clk 0:01:43.4]} 31... Re6 {[%clk 0:03:03.6]} 32. Rad1
{[%clk 0:01:34.5]} 32... Qb5 {[%clk 0:03:00.7]} 33. Qd2 {[%clk 0:01:19.2]} 33...
Rf6 {[%clk 0:02:38.3]} 34. Qd5 {[%clk 0:01:05.7]} 34... Qxd5 {[%clk 0:02:18.7]}
35. Rxd5 {[%clk 0:01:03.2]} 35... Bd6 {[%clk 0:02:14.2]} 36. Red1 {[%clk
0:00:55.1]} 36... Rc7 {[%clk 0:02:09.2]} 37. Rxd6 {[%clk 0:00:50.8]} 37... Rxd6
{[%clk 0:02:05.8]} 38. Rxd6 {[%clk 0:00:50.3]} 38... Re7 {[%clk 0:02:03.6]} 39.
a6 {[%clk 0:00:47.6]} 39... Kg7 {[%clk 0:02:01.4]} 40. a7 {[%clk 0:00:46]} 40...
Rxa7 {[%clk 0:01:53.1]} 41. Bxa7 {[%clk 0:00:44]} 41... Kf7 {[%clk 0:01:53]} 42.
Bb8 {[%clk 0:00:40.3]} 42... h5 {[%clk 0:01:52.3]} 43. Rc6 {[%clk 0:00:38]}
43... g5 {[%clk 0:01:48.2]} 44. Bxe5 {[%clk 0:00:34.4]} 44... c3 {[%clk
0:01:46.6]} 45. Bxc3 {[%clk 0:00:31.7]} 45... g4 {[%clk 0:01:44.4]} 46. hxg4
{[%clk 0:00:29.1]} 46... hxg4 {[%clk 0:01:42.8]} 47. Bd2 {[%clk 0:00:25.9]}
47... gxf3 {[%clk 0:01:40.9]} 48. gxf3 {[%clk 0:00:24.6]} 48... Ke7 {[%clk
0:01:39.8]} 49. Bxf4 {[%clk 0:00:23.8]} 49... Kd7 {[%clk 0:01:38.6]} 50. Rc7+
{[%clk 0:00:20.7]} 50... Ke6 {[%clk 0:01:37.5]} 51. c4 {[%clk 0:00:20.1]} 51...
Kf5 {[%clk 0:01:37]} 52. Rf7+ {[%clk 0:00:16.5]} 52... Ke6 {[%clk 0:01:35.8]}
53. c5 {[%clk 0:00:15.8]} 53... Kxf7 {[%clk 0:01:34.6]} 54. c6 {[%clk
0:00:15.3]} 54... Ke6 {[%clk 0:01:33.6]} 55. c7 {[%clk 0:00:13.6]} 55... Kd7
{[%clk 0:01:33.2]} 56. Be5 {[%clk 0:00:11.7]} 56... Kc8 {[%clk 0:01:32.8]} 57.
f4 {[%clk 0:00:10.8]} 57... Kd7 {[%clk 0:01:32.6]} 58. f5 {[%clk 0:00:09.9]}
58... Kc8 {[%clk 0:01:32.2]} 59. f6 {[%clk 0:00:09]} 59... Kd7 {[%clk
0:01:32.1]} 60. f7 {[%clk 0:00:07.7]} 60... Ke7 {[%clk 0:01:31.1]} 61. c8=Q
{[%clk 0:00:06.2]} 61... Kxf7 {[%clk 0:01:30.2]} 62. Qc6 {[%clk 0:00:04]} 62...
Ke7 {[%clk 0:01:28.5]} 63. Qd6+ {[%clk 0:00:02.4]} 63... Kf7 {[%clk 0:01:27.8]}
64. Qf6+ {[%clk 0:00:00.9]} 64... Ke8 {[%clk 0:01:26]} 1/2-1/2